fUSD/lending_fUSD_20260127
["ID","MTS","AMOUNT","RATE_DAILY","PERIOD"]
[403811245,1769549447345,-150.0,0.00017808,2]
[403811246,1769549447356,-150.0,0.00017808,2]
[403811247,1769549447365,-201.72695087,0.00017808,2]
[403811248,1769549447374,-500.0,0.00017808,2]
[403811249,1769549447384,-150.0,0.00017808,2]
[403811250,1769549447394,-500.0,0.00017808,2]
[403811251,1769549447403,-500.0,0.00017808,2]
[403811252,1769549447414,-500.0,0.00017808,2]
[403811253,1769549447425,-465.49006321,0.00017808,2]
[403811254,1769549447436,-500.0,0.00017808,2]
[403811255,1769549447447,-500.0,0.00017808,2]
[403811256,1769549447457,-500.0,0.00017808,2]
[403811257,1769549447466,-500.0,0.00017808,2]
[403811258,1769549447476,-500.0,0.00017808,2]
[403811259,1769549447485,-417.0,0.00017808,2]
[403811260,1769549447495,-500.0,0.00017808,2]
[403811261,1769549447504,-423.0,0.00017808,2]
[403811262,1769549447514,-500.0,0.00017808,2]
[403811263,1769549447524,-500.0,0.00017863,2]
[403811264,1769549447536,-150.0,0.00017863,2]
[403811265,1769549447547,-150.0,0.00017863,2]
[403811266,1769549447558,-150.0,0.00017863,2]
[403811267,1769549447569,-150.0,0.00017863,2]
[403811268,1769549447579,-150.0,0.00017863,2]
[403811269,1769549447589,-500.0,0.00017863,2]
[403811270,1769549447599,-150.0,0.00017863,2]
[403811271,1769549447612,-500.0,0.00017863,2]
[403811272,1769549447622,-500.0,0.00017863,2]
[403811273,1769549447985,-500.0,0.00017863,2]
[403811274,1769549447995,-615.49389154,0.00017863,2]
[403811275,1769549448005,-500.0,0.00017863,2]
[403811276,1769549448015,-500.0,0.00017863,2]
[403811277,1769549448025,-500.0,0.00017863,2]
[403811278,1769549448035,-500.0,0.00017863,2]
[403811279,1769549448044,-417.0,0.00017863,2]
[403811280,1769549448053,-500.0,0.00017863,2]
[403811281,1769549448062,-423.0,0.00017863,2]
[403811282,1769549448071,-500.0,0.00017863,2]
[403811283,1769549448081,-151.0,0.00017897,2]
[403811284,1769549448091,-166.66,0.00017899,2]
[403811285,1769549448101,-1707.21153053,0.000179,2]
[403811286,1769549448112,-18028.14714963,0.000179,2]
[403811287,1769549448122,-353.88730166,0.000179,2]
[403811288,1769549448132,-3100.0,0.000179,6]
[403811289,1769549448146,-575.9921483,0.000179,2]
[403811290,1769549448156,-195.58150189,0.000179,3]
[403811291,1769549448165,-4780.77157911,0.000179,2]
[403811292,1769549448175,-375.19870368,0.00017918,2]
[403811293,1769549448185,-250.0,0.00017918,2]
[403811294,1769549448195,-250.0,0.00017918,2]
[403811295,1769549448205,-250.0,0.00017918,2]
[403811296,1769549448214,-250.0,0.00017918,2]
[403811297,1769549448223,-250.0,0.00017918,2]
[403811298,1769549448233,-500.0,0.00017918,2]
[403811299,1769549448243,-250.0,0.00017918,2]
[403811300,1769549448252,-500.0,0.00017918,2]
[403811301,1769549448262,-403.40923612,0.00017918,2]
[403811302,1769549448272,-500.0,0.00017918,2]
[403811303,1769549448284,-500.0,0.00017918,2]
[403811304,1769549448294,-500.0,0.00017918,2]
[403811305,1769549448304,-500.0,0.00017918,2]
[403811306,1769549448313,-500.0,0.00017918,2]
[403811307,1769549448324,-417.0,0.00017918,2]
[403811308,1769549448333,-423.0,0.00017918,2]
[403811309,1769549448346,-500.0,0.00017918,2]
[403811310,1769549448356,-500.0,0.00017918,2]
[403811311,1769549448369,-500.0,0.00017973,2]
[403811312,1769549448379,-500.0,0.00017973,2]
[403811313,1769549448390,-500.0,0.00017973,2]
[403811314,1769549448400,-500.0,0.00017973,2]
[403811315,1769549448410,-500.0,0.00017973,2]
[403811316,1769549448420,-500.0,0.00017973,2]
[403811317,1769549448430,-500.0,0.00017973,2]
[403811318,1769549448440,-417.0,0.00017973,2]
[403811319,1769549448449,-423.0,0.00017973,2]
[403811320,1769549448459,-500.0,0.00017973,2]
[403811321,1769549448469,-500.0,0.00017973,2]
[403811322,1769549448479,-150.0,0.00017973,2]
[403811323,1769549448489,-150.0,0.00017973,2]
[403811324,1769549448499,-620.71868282,0.0001799,2]
[403811325,1769549448508,-620.71868282,0.0001799,2]
[403811326,1769549448518,-276.98573316,0.00017997,2]
[403811327,1769549448528,-300.0,0.00017999,2]
[403811328,1769549448545,-666.0,0.00017999,2]
[403811329,1769549448556,-300.0,0.00017999,2]
[403811330,1769549448567,-300.0,0.00017999,2]
[403811331,1769549448578,-4581823.56495561,0.00018,2]
[403811332,1769549448596,-18872.80445432,0.00018,2]
[403811333,1769549448613,-4865.58111011,0.00018,2]
[403811334,1769549448652,-564.11572434,0.00018,2]
[403811335,1769549448664,-577827.81905171,0.00018,2]
[403811336,1769549448676,-31449.0227828,0.00018,2]
[403811337,1769549448687,-2111.11640451,0.00018,2]
[403811338,1769549448818,-391.43999997,0.00018,2]
[403811339,1769549448829,-243404.77782372,0.00018,2]
[403811340,1769549448846,-2261.74114981,0.00018,2]
[403811341,1769549482093,-300.03198718,0.00015144,2]
[403811342,1769549483159,-169.36410685,0.00015144,2]
[403811343,1769549487148,-730.63589315,0.00015144,2]
[403811344,1769549488246,157.68434927,0.00015121,2]
[403811345,1769549489350,-300.0,0.00015144,2]
[403811346,1769549490927,-191.77924612,0.00015144,2]
[403811347,1769549492672,-311.44855008,0.00015144,2]
[403811348,1769549493266,1987.317,0.00014841,2]
[403811349,1769549493335,213.575,0.00014841,2]
[403811350,1769549493962,-355.24242231,0.00015144,2]
[403811351,1769549495456,-157.28703406,0.00015144,2]
[403811352,1769549497480,-349.34284617,0.00015144,2]
[403811353,1769549500933,-4636.77563073,0.00015144,2]
[403811354,1769549501057,-10000.01,0.00015144,2]
[403811355,1769549501169,-10000.01,0.00015144,2]
[403811356,1769549501312,-10000.01,0.00015144,2]
[403811357,1769549501446,-10000.01,0.00015144,2]
[403811358,1769549501576,-153.8599972,0.00015144,2]
[403811359,1769549503313,-10000.01,0.00015144,2]
[403811360,1769549503443,-10000.01,0.00015144,2]
[403811361,1769549503584,-10000.01,0.00015144,2]
[403811362,1769549503684,-10000.01,0.00015144,2]
[403811363,1769549505185,-169.04925401,0.00015144,2]
[403811364,1769549509696,-403.3097065,0.00015144,2]
[403811365,1769549509722,-10000.01,0.00015144,2]
[403811366,1769549509905,-10000.01,0.00015144,2]
[403811367,1769549510029,-10000.01,0.00015144,2]
[403811368,1769549510136,-10000.01,0.00015144,2]
[403811369,1769549514357,-238.07610676,0.00015144,2]
[403811370,1769549515803,-10000.01,0.00015144,2]
[403811371,1769549515907,-10000.01,0.00015144,2]
[403811372,1769549516375,2300.0,0.000149,5]
[403811373,1769549516413,-10000.01,0.00015144,2]
[403811374,1769549516428,-10000.01,0.00015144,2]
[403811375,1769549517516,-314.03538102,0.00015144,2]
[403811376,1769549519138,-187.42984328,0.00015144,2]
[403811377,1769549520914,-246.13335362,0.00015144,2]
[403811378,1769549524874,-300.0,0.00015143,2]
[403811379,1769549524900,-73.69188948,0.00015144,2]
[403811381,1769549527033,-171.78693618,0.00015144,2]
[403811382,1769549528353,361.143353,7.945e-05,2]
[403811383,1769549529868,-266.74753728,0.00015144,2]
[403811384,1769549531436,-278.85547752,0.00015144,2]
[403811385,1769549533050,-356.04530438,0.00015144,2]
[403811386,1769549535434,-282.32205396,0.00015144,2]
[403811388,1769549537107,-303.42257303,0.00015144,2]
[403811389,1769549539948,-345.84572724,0.00015144,2]
[403811392,1769549543161,-340.62892568,0.00015144,2]
[403811393,1769549545214,-188.34057322,0.00015144,2]
[403811395,1769549548452,-162.06320131,0.00015144,2]
[403811398,1769549551132,-200.99716894,0.00015144,2]
[403811399,1769549552990,-165.26725566,0.00015144,2]
[403811400,1769549555110,-181.2004307,0.00015144,2]
[403811402,1769549558355,-179.85757063,0.00015144,2]
[403811404,1769549560506,-167.10986205,0.00015144,2]
[403811406,1769549562980,-383.43904151,0.00015143,2]
[403811407,1769549564372,-63.64126664,0.00015143,2]
[403811408,1769549564393,-190.66555362,0.00015143,2]
[403811410,1769549567019,-189.91285581,0.00015143,2]
[403811411,1769549568599,-68.13212403,0.00015143,2]
[403811412,1769549568622,-178.48084942,0.00015143,2]
[403811413,1769549568648,-24.45444307,0.00015144,2]
[403811414,1769549570974,-187.65595433,0.00015144,2]
[403811415,1769549573032,-217.89317242,0.00015144,2]
[403811417,1769549576423,-302.0,0.00015144,2]
[403811419,1769549578862,-183.44230964,0.00015144,2]
[403811420,1769549579921,-464.21163511,0.00015144,2]
[403811421,1769549582007,-194.81691192,0.00015144,2]
[403811422,1769549584881,-202.72970625,0.00015143,2]
[403811423,1769549588579,-97.27029375,0.00015143,2]
[403811424,1769549588608,-117.05434278,0.00015144,2]
[403811425,1769549590617,-217.67794604,0.00015144,2]
[403811426,1769549592846,-206.15054448,0.00015144,2]
[403811429,1769549596604,-339.59623487,0.00015144,2]
[403811430,1769549598252,-313.98688392,0.00015144,2]
[403811431,1769549602143,-341.79069879,0.00015123,2]
[403811433,1769549605538,-205.4877696,0.00015123,2]
[403811434,1769549608180,-209.99820294,0.00015123,2]
[403811435,1769549609895,-161.65817532,0.00015112,2]
[403811436,1769549613204,-123.34182468,0.00015112,2]
[403811437,1769549613227,-111.15206732,0.00015123,2]
[403811438,1769549615254,-151.55769036,0.00015122,2]
[403811440,1769549617406,-233.87637122,0.00015122,2]
[403811441,1769549619792,-218.63495443,0.00015122,2]
[403811442,1769549622956,-302.0,0.00015122,2]
[403811443,1769549624477,-177.2800995,0.00015122,2]
[403811445,1769549627210,-9638.866647,0.00015122,2]
[403811446,1769549627257,-218.34596674,0.00015122,2]
[403811447,1769549627344,-475.23547075,0.00015122,2]
[403811448,1769549629973,-189.22945552,0.00015123,2]
[403811449,1769549631520,-403.37124599,0.00015123,2]
[403811450,1769549633065,-200.493892,0.00015123,2]
[403811451,1769549635124,-372.29216576,0.00015123,2]
[403811452,1769549636651,-153.18147147,0.00015123,2]
[403811453,1769549638853,-225.28528825,0.00015123,2]
[403811454,1769549640401,-295.65706098,0.00015123,2]
[403811455,1769549644068,-205.30586078,0.00015123,2]
[403811456,1769549646668,-10000.01,0.00015123,2]
[403811457,1769549646826,-1615.74989118,0.00015123,2]
[403811458,1769549646860,-161.04189307,0.00015123,2]
[403811459,1769549647121,-350.79647758,0.00015144,2]
[403811460,1769549648662,-382.27362717,0.00015144,2]
[403811461,1769549651072,-189.53517489,0.00015144,2]
[403811462,1769549653786,-278.53886927,0.00015144,2]
[403811463,1769549655191,-280.4968168,0.00015144,2]
[403811464,1769549659536,-311.47334292,0.00015144,2]
[403811465,1769549663248,-243.12133471,0.00015144,2]
[403811466,1769549666578,-453.69282598,0.00015144,2]
[403811467,1769549667565,-472.55787541,0.00015144,2]
[403811468,1769549669386,-465.0,0.00015144,2]
[403811469,1769549673318,-274.71471175,0.00015144,2]
[403811470,1769549675054,-203.91017388,0.00015144,2]
[403811471,1769549678171,-8.12470684,0.00015144,2]
[403811472,1769549678198,-295.23165684,0.00015144,2]
[403811473,1769549679691,-177.0739499,0.00015144,2]
[403811474,1769549681250,600.0,0.000149,5]
[403811475,1769549681946,-714.50305305,0.00015144,2]
[403811476,1769549684058,-196.57174881,0.00015144,2]
[403811477,1769549686038,-407.24615296,0.00015144,2]
[403811478,1769549688106,-176.34710394,0.00015144,2]
[403811479,1769549691548,-221.64652536,0.00015144,2]
[403811480,1769549693681,-182.59872594,0.00015144,2]
[403811481,1769549695765,-180.10092261,0.00015144,2]
[403811482,1769549699015,-250.0,0.00015144,2]
[403811483,1769549700583,-156.65161085,0.00015144,2]
[403811484,1769549702729,-484.4372883,0.00015143,2]
[403811485,1769549704859,-277.04594054,0.00015143,2]
[403811486,1769549709825,-211.39436537,0.00015143,2]
[403811487,1769549713186,-174.40514474,0.00015143,2]
[403811488,1769549716906,-52.71726105,0.00015143,2]
[403811489,1769549716933,-229.65660392,0.00015143,2]
[403811491,1769549720301,-70.34339608,0.00015143,2]
[403811492,1769549720323,-250.0,0.00015144,2]
[403811493,1769549720349,-4.27089532,0.00015144,2]
[403811494,1769549722658,-264.08,0.00015144,2]
[403811495,1769549726619,-189.011885,0.00015144,2]
[403811498,1769549735928,-372.87589929,0.00015144,2]
[403811502,1769549743263,-365.72354694,0.00015144,2]
[403811504,1769549746416,-364.6152272,0.00015144,2]
[403811505,1769549749131,-295.06693158,0.00015144,2]
[403811506,1769549751959,-361.17026193,0.00015144,2]
[403811507,1769549754864,-165.95799728,0.00015144,2]
[403811508,1769549757037,-305.55713342,0.00015144,2]
[403811509,1769549759215,-369.59770996,0.00015144,2]
[403811510,1769549760750,-280.4968168,0.00015144,2]
[403811511,1769549765781,-164.28777937,0.00015143,2]
[403811512,1769549767684,1843.585462,7.945e-05,2]
[403811513,1769549767842,-135.71222063,0.00015143,2]
[403811514,1769549767865,-21.40009928,0.00015143,2]
[403811516,1769549769316,-266.12362878,0.00015143,2]
[403811518,1769549773303,-12.47627194,0.00015143,2]
[403811519,1769549773329,-487.52372806,0.00015144,2]
[403811522,1769549774908,-165.93834011,0.00015144,2]
[403811524,1769549776918,-280.0356392,0.00015144,2]
[403811525,1769549778404,-245.30109165,0.00015144,2]
[403811528,1769549781726,-610.98219507,0.00015144,2]
[403811530,1769549784145,-408.10178518,0.00015143,2]
[403811532,1769549786263,-91.89821482,0.00015143,2]
[403811533,1769549786288,-219.61919374,0.00015143,2]
[403811534,1769549789556,-280.38080626,0.00015143,2]
[403811535,1769549789584,-500.0,0.00015143,2]
[403811536,1769549789609,-41.56428829,0.00015143,2]
[403811538,1769549791136,-254.54970362,0.00015143,2]
[403811539,1769549793957,-157.29701247,0.00015143,2]
[403811541,1769549797994,-46.58899562,0.00015143,2]
[403811542,1769549798019,-114.36352906,0.00015143,2]
[403811543,1769549800223,-352.75634714,0.00015143,2]
[403811544,1769549801752,-32.8801238,0.00015143,2]
[403811545,1769549801780,-324.84929742,0.00015143,2]
[403811546,1769549806597,-175.15070258,0.00015143,2]
[403811547,1769549806623,-64.39372057,0.00015143,2]
[403811548,1769549807614,-435.60627943,0.00015143,2]
[403811549,1769549807640,-2.94136214,0.00015143,2]
[403811550,1769549809152,-310.9805,0.00015044,2]
[403811551,1769549809177,-51.68372192,0.00015143,2]
[403811558,1769549814656,-210.59927389,0.00015143,2]
[403811560,1769549817170,-8156.424538,0.00015044,2]
[403811561,1769549817183,-10000.01,0.00015044,2]
[403811562,1769549817196,-10000.01,0.00015044,2]
[403811563,1769549817209,-10000.01,0.00015044,2]
[403811564,1769549817223,-668.349062,0.00015044,2]
[403811565,1769549817744,-234.77564205,0.00015143,2]
[403811566,1769549817769,-208.31482906,0.00015143,2]
[403811568,1769549821951,-250.0,0.00015143,2]
[403811569,1769549823476,-41.68517094,0.00015143,2]
[403811570,1769549823504,-252.40688736,0.00015143,2]
[403811571,1769549824871,-247.59311264,0.00015143,2]
[403811572,1769549824897,-93.80142437,0.00015143,2]
[403811573,1769549830667,-293.95469562,0.00015135,2]
[403811574,1769549832001,-206.04530438,0.00015135,2]
[403811575,1769549832024,-13.98127396,0.00015135,2]
[403811576,1769549833575,-188.8292769,0.00015135,2]
[403811577,1769549833598,-22.23329048,0.00015135,2]
[403811583,1769549838321,-177.76670952,0.00015135,2]
[403811584,1769549838344,-6.01993808,0.00015135,2]
[403811585,1769549838600,1050.88046112,0.00015143,5]
[403811587,1769549839626,-144.98006192,0.00015135,2]
[403811588,1769549839649,-46.63449176,0.00015135,2]
[403811590,1769549841376,-104.36550824,0.00015135,2]
[403811591,1769549841398,-151.0,0.00015135,2]
[403811592,1769549841420,-12.69939063,0.00015135,2]
[403811594,1769549845148,-138.30060937,0.00015135,2]
[403811595,1769549845179,-30.07061056,0.00015135,2]
[403811596,1769549847097,-120.92938944,0.00015135,2]
[403811597,1769549847120,-107.71877714,0.00015135,2]
[403811599,1769549849232,-43.28122286,0.00015135,2]
[403811600,1769549849255,-151.0,0.00015135,2]
[403811601,1769549849278,-151.0,0.00015135,2]
[403811602,1769549849301,-138.16491514,0.00015135,2]
[403811603,1769549852992,-12.83508486,0.00015135,2]
[403811604,1769549853020,-151.0,0.00015135,2]
[403811605,1769549853042,-64.58822762,0.00015135,2]
[403811613,1769549862076,-195.0,0.00015135,2]
[403811617,1769549865937,-44.93508014,0.00015135,2]
[403811618,1769549865965,-134.56034353,0.00015143,2]
[403811619,1769549867473,10000.01,0.00015123,2]
[403811620,1769549867498,2745.84048411,0.00015123,2]
[403811621,1769549869478,-271.6382321,0.00015143,2]
[403811622,1769549869506,-17.37256443,0.00015143,2]
[403811625,1769549873299,-299.30623342,0.00015144,2]
[403811632,1769549877352,-194.48163255,0.00015144,2]
[403811636,1769549881722,-360.01231552,0.00015144,2]
[403811640,1769549884997,-479.43231453,0.00015144,2]
[403811644,1769549887528,-273.4930365,0.00015144,2]
[403811645,1769549889545,-303.72446997,0.00015144,2]
[403811648,1769549892994,-301.88749757,0.00015144,2]
[403811649,1769549896888,-283.84161669,0.00015144,2]
[403811650,1769549902194,-200.0,0.00015144,2]
[403811651,1769549906058,-395.60871958,0.00015144,2]
[403811652,1769549910393,-324.91806846,0.00015144,2]
[403811656,1769549913018,-166.71745875,0.00015144,2]
[403811658,1769549919090,-530.52561623,0.00015144,2]
[403811659,1769549922465,-218.25372843,0.00015144,2]
[403811660,1769549927425,-202.35883745,0.00015144,2]
[403811662,1769549934458,-194.34737429,0.00015144,2]
[403811663,1769549937143,-198.25680268,0.00015144,2]
[403811664,1769549941134,-363.26456147,0.00015144,2]
[403811667,1769549943251,-244.66137545,0.00015143,2]
[403811668,1769549945357,-55.33862455,0.00015143,2]
[403811669,1769549945385,-457.2361649,0.00015144,2]
[403811671,1769549948095,519.69651882,0.00016,4]
[403811672,1769549950569,-195.0,0.00015144,2]
[403811673,1769549950595,-60.22569901,0.00015144,2]
[403811674,1769549952066,-171.72365379,0.00015144,2]
[403811675,1769549952600,171.8779803,0.00015071,2]
[403811676,1769549957634,-216.13450053,0.00015144,2]
[403811677,1769549959226,-245.00556981,0.00015144,2]
[403811678,1769549961359,-371.95506118,0.00015143,2]
[403811681,1769549965973,-128.04493882,0.00015143,2]
[403811682,1769549966001,-140.43037814,0.00015143,2]
[403811683,1769549968633,-226.78891903,0.00015143,2]
[403811684,1769549970183,-132.78070283,0.00015143,2]
[403811685,1769549970207,-44.26110497,0.00015143,2]
[403811686,1769549973323,-322.9581922,0.00015143,2]
[403811687,1769549976058,-132.78070283,0.00015143,2]
[403811688,1769549976088,-178.56431763,0.00015143,2]
[403811692,1769549981791,-321.43568237,0.00015143,2]
[403811693,1769549981817,-139.93150279,0.00015143,2]
[403811695,1769549984192,939.7072035,0.00015125,2]
[403811696,1769549985461,-276.0,0.00015143,2]
[403811699,1769549990107,-84.06849721,0.00015143,2]
[403811700,1769549990132,-108.74199767,0.00015143,2]
[403811701,1769549992248,-186.01311608,0.00015143,2]
[403811702,1769549994502,-205.24488625,0.00015143,2]
[403811703,1769549994527,-28.92166025,0.00015143,2]
[403811704,1769549997251,-300.0,0.00015143,2]
[403811705,1769549999388,-171.07833975,0.00015143,2]
[403811706,1769549999414,-12.92166025,0.00015143,2]
[403811707,1769550000934,-217.56114538,0.00015143,2]
[403811709,1769550006400,-226.81610879,0.00015143,2]
[403811710,1769550008939,222.15,0.00015134,2]
[403811711,1769550009289,222.15,0.00015134,2]
[403811712,1769550009861,222.15,0.00015134,2]
[403811713,1769550010079,222.15,0.00015134,2]
[403811714,1769550011014,222.15,0.00015134,2]
[403811715,1769550011698,1853.15,0.00015134,2]
[403811716,1769550011941,1853.15,0.00015134,2]
[403811717,1769550012369,-73.18389121,0.00015143,2]
[403811718,1769550012392,-226.81610879,0.00015143,2]
[403811720,1769550014583,-193.72117116,0.00015143,2]
[403811727,1769550022595,-387.63687802,0.00015143,2]
[403811730,1769550028679,-356.68893856,0.00015143,2]
[403811731,1769550031743,-35.13690347,0.00015143,2]
[403811732,1769550031767,-300.0,0.00015143,2]
[403811733,1769550031790,-0.19160633,0.00015143,2]
[403811735,1769550041878,-275.80839367,0.00015143,2]
[403811736,1769550041905,-44.14741374,0.00015143,2]
[403811737,1769550044116,-225.36978063,0.00015143,2]
[403811738,1769550044143,-159.68680721,0.00015143,2]
[403811739,1769550046435,-269.12598303,0.00015143,2]
[403811740,1769550048225,-11.94871186,0.00015143,2]
[403811741,1769550048251,-203.3567496,0.00015143,2]
[403811753,1769550093240,1325.53433209,0.00014841,2]
[403811754,1769550093264,943.74266791,0.00014841,2]
[403811759,1769550111118,9056.26733209,0.00015084,2]
[403811760,1769550111142,4826.06070835,0.00015084,2]
[403811762,1769550121858,2500.0,0.00015044,2]
[403811780,1769550181239,300.0,0.00015134,2]
[403811795,1769550239016,3606.0951,0.00015044,2]
[403811796,1769550245093,6393.9149,0.00015044,2]
[403811797,1769550245119,8210.4203,0.00015044,2]
[403811798,1769550251454,1706.4995,0.00015044,2]
[403811799,1769550252206,-200.0,0.00015135,2]
[403811800,1769550252233,-200.0,0.00015135,2]
[403811801,1769550252260,-151.0,0.00015135,2]
[403811802,1769550252288,-151.0,0.00015135,2]
[403811803,1769550252314,-151.0,0.00015135,2]
[403811804,1769550252341,-205.0,0.00015135,2]
[403811805,1769550252368,-151.0,0.00015135,2]
[403811806,1769550252394,-151.0,0.00015135,2]
[403811807,1769550252422,-176.83821251,0.00015135,2]
[403811808,1769550252449,-500.0,0.00015135,2]
[403811809,1769550252476,-247.52642896,0.00015135,2]
[403811810,1769550253757,5431.28071706,0.00015084,2]
[403811811,1769550253780,6593.75163687,0.00015084,2]
[403811817,1769550310449,164.968212,0.00015,2]
[403811826,1769550396148,3241.29015113,0.00015044,2]
[403811827,1769550396170,2768.99194887,0.00015044,2]
[403811836,1769550435223,3300.0,0.000149,5]
[403811841,1769550437313,6600.0,0.000159,5]
[403811845,1769550455174,200.0,0.00015073,2]
[403811860,1769550518522,7031.01805113,0.00015044,2]
[403811861,1769550518554,10000.01,0.00015044,2]
[403811862,1769550518580,10000.01,0.00015044,2]
[403811863,1769550518605,10000.01,0.00015044,2]
[403811864,1769550518630,10000.01,0.00015044,2]
[403811865,1769550518655,10000.01,0.00015044,2]
[403811866,1769550518681,10000.01,0.00015044,2]
[403811867,1769550518706,10000.01,0.00015044,2]
[403811868,1769550518731,10000.01,0.00015044,2]
[403811869,1769550518756,10000.01,0.00015044,2]
[403811870,1769550519633,-168.26434248,0.00015044,2]
[403811871,1769550521650,-198.47987999,0.00015044,2]
[403811872,1769550523150,-156.37759892,0.00015044,2]
[403811874,1769550524621,-190.59259671,0.00015044,2]
[403811875,1769550527084,-165.22858268,0.00015044,2]
[403811876,1769550528123,-249.57238935,0.00015044,2]
[403811877,1769550530099,-7065.06877459,0.00015044,2]
[403811878,1769550530525,-10000.01,0.00015044,2]
[403811879,1769550530557,-10000.01,0.00015044,2]
[403811882,1769550532402,-10000.01,0.00015044,2]
[403811885,1769550533619,-1017.01144558,0.00015044,2]
[403811886,1769550534366,-10000.01,0.00015044,2]
[403811887,1769550535649,-10000.01,0.00015044,2]
[403811889,1769550537826,-191.4208212,0.00015044,2]
[403811890,1769550540906,-170.25575688,0.00015044,2]
[403811891,1769550542563,-260.4172349,0.00015044,2]
[403811892,1769550544762,-231.22923675,0.00015044,2]
[403811893,1769550549281,-267.93863731,0.00015044,2]
[403811894,1769550550561,-10000.01,0.00015044,2]
[403811895,1769550550695,-10000.01,0.00015044,2]
[403811896,1769550550835,-10000.01,0.00015044,2]
[403811897,1769550552006,-159.57917897,0.00015044,2]
[403811898,1769550553072,-470.22536465,0.00015044,2]
[403811899,1769550553878,-10000.01,0.00015044,2]
[403811900,1769550553988,-10000.01,0.00015044,2]
[403811901,1769550554102,-10000.01,0.00015044,2]
[403811902,1769550557025,-10000.01,0.00015044,2]
[403811903,1769550557237,-10000.01,0.00015044,2]
[403811904,1769550557367,-10000.01,0.00015044,2]
[403811905,1769550557489,-10000.01,0.00015044,2]
[403811906,1769550559998,-10000.01,0.00015044,2]
[403811907,1769550560186,-233.42388047,0.00015044,2]
[403811908,1769550561677,9128.35,0.00014997,2]
[403811909,1769550567928,-231.58169979,0.00015044,2]
[403811910,1769550569680,-201.62648842,0.00015044,2]
[403811911,1769550574039,-183.92092874,0.00015042,2]
[403811912,1769550576823,-323.89142777,0.00015042,2]
[403811913,1769550580532,376.30670792,0.00014699,2]
[403811914,1769550581858,-351.13747984,0.00015042,2]
[403811915,1769550581885,-654.92793506,0.00015044,2]
[403811916,1769550583680,-173.45650255,0.00015044,2]
[403811917,1769550584245,-10000.01,0.00015044,2]
[403811918,1769550584357,-10000.01,0.00015044,2]
[403811919,1769550584478,-10000.01,0.00015044,2]
[403811920,1769550584584,-10000.01,0.00015044,2]
[403811921,1769550584691,-10000.01,0.00015044,2]
[403811922,1769550584807,-10000.01,0.00015044,2]
[403811923,1769550584951,-10000.01,0.00015044,2]
[403811924,1769550585728,-267.66914738,0.00015044,2]
[403811925,1769550588914,-300.0,0.00015044,2]
[403811926,1769550591084,-263.21979285,0.00015044,2]
[403811927,1769550593852,-167.31867766,0.00015044,2]
[403811928,1769550596992,-300.0,0.00015044,2]
[403811929,1769550600220,-241.31363509,0.00015044,2]
[403811931,1769550606705,-242.01231233,0.00015043,2]
[403811932,1769550608253,-271.15589761,0.00015043,2]
[403811933,1769550609783,-198.17893854,0.00015043,2]
[403811934,1769550611287,-168.05363435,0.00015043,2]
[403811935,1769550611520,-320.59921717,0.00015043,2]
[403811936,1769550611549,-275.0,0.00015043,2]
[403811937,1769550611603,-8808.81156566,0.00015044,2]
[403811938,1769550611629,-10000.01,0.00015044,2]
[403811939,1769550611768,-10000.01,0.00015044,2]
[403811940,1769550611878,-10000.01,0.00015044,2]
[403811941,1769550612005,-10000.01,0.00015044,2]
[403811942,1769550614291,-353.50363538,0.00015034,2]
[403811943,1769550615837,-223.16741288,0.00015034,2]
[403811944,1769550617828,-1615.57895174,0.00015034,2]
[403811945,1769550617859,-2192.25,0.00015034,2]
[403811946,1769550617889,-192.10209652,0.00015034,2]
[403811947,1769550617947,-2000.14790348,0.00015034,2]
[403811948,1769550617981,-2192.25,0.00015034,2]
[403811949,1769550618011,-2192.25,0.00015034,2]